[Event "UZB-ch Men 2021"]
[Site "Tashkent"]
[Date "2021.04.17"]
[Round "1.2"]
[White "Sindarov, Javokhir"]
[Black "Shermuhammadov, Samandar"]
[Result "1-0"]
[ECO "C42"]
[WhiteElo "2544"]
[BlackElo "2063"]
[Annotator "broadcasts"]
[PlyCount "67"]
[EventDate "2021.04.17"]
[EventType "tourn"]
[EventCountry "UZB"]
[TimeControl "5400+30"]

1. e4 e5 2. Nf3 Nf6 3. Nxe5 d6 4. Nc4 Nxe4 5. Qe2 Qe7 6. Ne3 c6 7. b3 Qe5 8. c3 Be7 9. g3 d5 10. Bg2 b6 11. O-O Ba6 12. d3 Nc5 13. Rd1 O-O 14. Bb2 Bf6 15. Na3 Nbd7 16. Nac2 Qe6 17. Nb4 Bb7 18. d4 a5 19. Nd3 Nxd3 20. Qxd3 Bg5 21. f4 Bd8 22. Re1 Qg6 23. Nf5 Kh8 24. Ba3 Rg8 25. Nd6 Ba6 26. Qxg6 hxg6 27. Nxf7+ Kh7 28. Re6 Bb5 29. Be7 Bxe7 30. Rxe7 Nf6 31. Rc1 Rge8 32. Rxe8 Rxe8 33. Ne5 Rd8 34. a4 1-0

[Event "UZB-ch Men 2021"]
[Site "Tashkent"]
[Date "2021.04.17"]
[Round "1.3"]
[White "Vakhidov, Jakhongir"]
[Black "Begmuratov, Khumoyun"]
[Result "1-0"]
[ECO "A27"]
[WhiteElo "2533"]
[BlackElo "1971"]
[Annotator "broadcasts"]
[PlyCount "165"]
[EventDate "2021.04.17"]
[EventType "tourn"]
[EventCountry "UZB"]
[SourceVersionDate "2021.04.17"]
[TimeControl "5400+30"]

1. c4 e5 2. Nc3 Nc6 3. Nf3 f5 4. g3 Nf6 5. d4 e4 6. Nh4 d6 7. Ng2 g6 8. h4 Bg7 9. Bg5 h6 10. Bxf6 Qxf6 11. e3 O-O 12. Nf4 Ne7 13. Be2 c6 14. Qb3 Qf7 15. O-O-O b6 16. Qa3 Rd8 17. Kb1 a6 18. Rhg1 h5 19. Qb3 Rb8 20. f3 exf3 21. Bxf3 b5 22. cxb5 Qxb3 23. axb3 axb5 24. b4 Re8 25. Rge1 Bb7 26. e4 fxe4 27. Bxe4 Nf5 28. Bxf5 Rxe1 29. Rxe1 gxf5 30. Rd1 Bh6 31. Nxh5 Kh7 32. d5 c5 33. bxc5 dxc5 34. Nf6+ Kg6 35. Nd7 Rc8 36. Nxb5 Rd8 37. Nb6 Bf8 38. Nc7 Bd6 39. Ne6 Re8 40. Nc4 Bxg3 41. Nxc5 Bc8 42. Rg1 f4 43. Nd6 Bf5+ 44. Nxf5 Kxf5 45. d6 Bxh4 46. d7 Rd8 47. Rd1 f3 48. Nb7 Rb8 49. d8=Q Bxd8 50. Nxd8 Ke4 51. Ne6 Ke3 52. Ng5 Ke2 53. Rc1 f2 54. Ne4 f1=N 55. Nc3+ Kf2 56. Rd1 Ne3 57. Rd4 Rb7 58. Nd1+ Ke2 59. Nxe3 Kxe3 60. Rh4 Kd3 61. Ka2 Kc2 62. Rc4+ Kd3 63. b3 Rb8 64. Kb2 Rb7 65. Rh4 Rc7 66. b4 Rc4 67. Rh3+ Kd4 68. Kb3 Rc8 69. b5 Rc1 70. Kb4 Rb1+ 71. Ka5 Kc5 72. Rc3+ Kd6 73. b6 Kd7 74. Ka6 Ra1+ 75. Kb7 Rb1 76. Rd3+ Ke8 77. Kc7 Rc1+ 78. Kb8 Rb1 79. b7 Ra1 80. Rd5 Ra2 81. Kc7 Rc2+ 82. Kb6 Rb2+ 83. Rb5 1-0

[Event "UZB-ch Men 2021"]
[Site "Tashkent"]
[Date "2021.04.17"]
[Round "1.4"]
[White "Vokhidov, Shamsiddin"]
[Black "Dzhumaev, Marat"]
[Result "1/2-1/2"]
[ECO "B13"]
[WhiteElo "2529"]
[BlackElo "2425"]
[Annotator "broadcasts"]
[PlyCount "98"]
[EventDate "2021.04.17"]
[EventType "tourn"]
[EventCountry "UZB"]
[SourceVersionDate "2021.04.17"]
[TimeControl "5400+30"]

1. e4 c6 2. d4 d5 3. exd5 cxd5 4. c4 Nf6 5. Nc3 Nc6 6. Nf3 Bg4 7. cxd5 Nxd5 8. Qb3 Bxf3 9. gxf3 e6 10. Qxb7 Nxd4 11. Bb5+ Nxb5 12. Qc6+ Ke7 13. Qxb5 Qd7 14. Nxd5+ Qxd5 15. Qxd5 exd5 16. Be3 Ke6 17. O-O-O Rc8+ 18. Kb1 Bc5 19. Rhe1 Kd6 20. Rd3 Rhd8 21. Bg5 f6 22. Bf4+ Kc6 23. Re6+ Kd7 24. Ra6 Ke7 25. a4 g5 26. Be3 d4 27. Bd2 Rd6 28. Rxd6 Bxd6 29. f4 gxf4 30. Rxd4 Be5 31. Rb4 f3 32. Be3 Rc7 33. h3 Ke6 34. a5 Kd5 35. a6 Rc6 36. Rb7 Rxa6 37. Rxa7 Rd6 38. Rxh7 Ke4 39. Kc2 Rc6+ 40. Kb3 Rd6 41. Kc4 Bxb2 42. Rh4+ Kf5 43. Rf4+ Kg6 44. Rxf3 Be5 45. Bc5 Rd1 46. Rd3 Rxd3 47. Kxd3 Kh5 48. Ke4 Kh4 49. f4 Bxf4 1/2-1/2

[Event "UZB-ch Men 2021"]
[Site "Tashkent"]
[Date "2021.04.17"]
[Round "1.6"]
[White "Rakhmatullaev, Almas"]
[Black "Madaminov, Mukhiddin"]
[Result "1-0"]
[ECO "C11"]
[WhiteElo "2190"]
[BlackElo "2258"]
[Annotator "NA"]
[PlyCount "87"]
[EventDate "2021.04.17"]
[EventType "tourn"]
[EventCountry "UZB"]
[SourceVersionDate "2021.04.17"]
[TimeControl "5400+30"]

1. e4 e6 2. d4 d5 3. Nc3 Nf6 4. e5 Nfd7 5. f4 c5 6. Nf3 Nc6 7. Be3 Qb6 8. a3 cxd4 9. Nxd4 Bc5 10. Na4 Qa5+ 11. c3 Bxd4 12. Bxd4 Nxd4 13. Qxd4 b6 14. Bd3 Ba6 15. Bc2 Qb5 16. O-O-O Rc8 17. b4 Qc6 18. Kd2 O-O 19. Rhe1 Rfd8 20. Nb2 Nb8 21. a4 Qe8 22. b5 Bb7 23. f5 Nd7 24. f6 g6 25. Re3 Nc5 26. Ke1 Ne4 27. Qb4 Rc5 28. Rd4 Rdc8 29. Bxe4 dxe4 30. Nc4 Qf8 31. Nd6 R8c7 32. Nxb7 Rxb7 33. Rexe4 Rbc7 34. c4 Rc8 35. Qd2 h5 36. h3 R5c7 37. g4 h4 38. g5 Rc5 39. Rd6 Ra8 40. Qd4 Rcc8 41. Rxh4 Rd8 42. Rh6 Rxd6 43. exd6 Qxd6 44. Qxd6 1-0

[Event "UZB-ch Men 2021"]
[Site "Tashkent"]
[Date "2021.04.20"]
[Round "2.2"]
[White "Dzhumaev, Marat"]
[Black "Abdurakhmonov, Mukhammadali"]
[Result "1/2-1/2"]
[ECO "B70"]
[WhiteElo "2425"]
[BlackElo "2284"]
[Annotator "RC"]
[PlyCount "143"]
[EventDate "2021.04.17"]
[EventType "tourn"]
[EventCountry "UZB"]
[SourceTitle "playchess.com"]
[Source "ChessBase"]
[SourceQuality "1"]
[TimeControl "5400+30"]

1. e4 {[%emt 0:00:10]} c5 {[%emt 0:00:24]} 2. Nf3 {[%emt 0:00:45]} d6 {[%emt 0:04:19]} 3. d4 {[%emt 0:01:32]} cxd4 {[%emt 0:00:15]} 4. Nxd4 {[%emt 0:00:06]} Nf6 {[%emt 0:00:21]} 5. Nc3 {[%emt 0:00:08]} a6 {[%emt 0:00:07]} 6. Nb3 {[%emt 0:01:50]} Nc6 {[%emt 0:03:58]} 7. Be2 {[%emt 0:01:54]} g6 {[%emt 0:01:24]} 8. O-O {[%emt 0:01:39]} Bg7 {[%emt 0:00:13]} 9. Re1 {[%emt 0:00:24]} O-O {[%emt 0:00:29]} 10. Bg5 {[%emt 0:00:48]} b5 {[%emt 0:09:37]} 11. Bf1 {[%emt 0:05:27]} Nd7 {[%emt 0:03:40]} 12. Qc1 {[%emt 0:04:49]} Bb7 {[%emt 0:04:04]} 13. a4 {[%emt 0:03:00]} bxa4 {[%emt 0:01:31]} 14. Rxa4 {[%emt 0:00:21]} Nb6 {[%emt 0:00:41]} 15. Ra3 {[%emt 0:01:52]} Re8 {[%emt 0:01:05]} 16. Nd5 {[%emt 0:10:05]} Ne5 {[%emt 0:15:37]} 17. Rd1 {[%emt 0:24:18]} Bxd5 {[%emt 0:10:50]} 18. exd5 {[%emt 0:02:31]} Nec4 {[%emt 0:00:18]} 19. Ra2 {[%emt 0:00:22]} Qc7 {[%emt 0:01:07]} 20. c3 {[%emt 0:01:07]} a5 {[%emt 0:05:33]} 21. Qc2 {[%emt 0:10:14]} a4 {[%emt 0:04:13]} 22. Nd4 {[%emt 0:05:02]} Nxd5 {[%emt 0:06:45]} 23. Rxa4 {[%emt 0:01:13]} Ndb6 {[%emt 0:01:43]} 24. Rxa8 {[%emt 0:04:52]} Rxa8 {[%emt 0:00:06]} 25. b3 {[%emt 0:02:09]} Ne5 {[%emt 0:04:22]} 26. c4 {[%emt 0:00:24]} Bf8 {[%emt 0:01:48]} 27. h3 {[%emt 0:00:51]} Rc8 {[%emt 0:01:14]} 28. Nb5 {[%emt 0:02:11]} Qd7 {[%emt 0:05:26]} 29. Qd2 {[%emt 0:03:46]} Qf5 {[%emt 0:03:31]} 30. Be3 {[%emt 0:00:11]} Na8 {[%emt 0:02:00]} 31. Be2 {[%emt 0:03:50]} h5 {[%emt 0:01:41]} 32. f4 {[%emt 0:01:34]} Nd7 {[%emt 0:00:22]} 33. g4 {[%emt 0:01:27]} Qf6 {[%emt 0:00:30]} 34. gxh5 {[%emt 0:01:06]} Nc7 {[%emt 0:00:26]} 35. Nxc7 {[%emt 0:00:24]} Rxc7 {[%emt 0:00:06]} 36. hxg6 {[%emt 0:00:07]} fxg6 {[%emt 0:00:23]} 37. Kh2 {[%emt 0:00:49]} e5 {[%emt 0:00:37]} 38. Rg1 {[%emt 0:00:21]} exf4 {[%emt 0:00:42]} 39. Bxf4 {[%emt 0:00:53]} Ne5 {[%emt 0:00:05]} 40. Qd5+ {[%emt 0:00:49]} Kh7 {[%emt 0:00:31]} 41. Bg3 {[%emt 0:00:26]} Ra7 {[%emt 0:01:28]} 42. Rf1 {[%emt 0:00:23]} Qe7 {[%emt 0:00:04]} 43. Rf2 {[%emt 0:02:12]} Bg7 {[%emt 0:00:24]} 44. Bd1 {[%emt 0:00:46]} Qg5 {[%emt 0:00:57]} 45. Bf4 {[%emt 0:00:40]} Qh4 {[%emt 0:00:19]} 46. Bg3 {[%emt 0:00:08]} Qg5 {[%emt 0:00:09]} 47. Bc2 {[%emt 0:00:26]} Ra1 {[%emt 0:00:35]} 48. Qe4 {[%emt 0:00:33]} Qc1 {[%emt 0:00:33]} 49. Qg2 {[%emt 0:00:19]} Qh6 {[%emt 0:01:57]} 50. Bf4 {[%emt 0:00:20]} Qh4 {[%emt 0:00:03]} 51. Be3 {[%emt 0:02:09]} Bh6 {[%emt 0:00:53]} 52. Qb7+ {[%emt 0:00:12]} Kh8 {[%emt 0:00:44]} 53. Kg2 {[%emt 0:00:43]} Rg1+ {[%emt 0:00:53]} 54. Kxg1 {[%emt 0:00:09]} Bxe3 {[%emt 0:00:06]} 55. Qa8+ {[%emt 0:01:14]} Kh7 {[%emt 0:00:33]} 56. Qg2 {[%emt 0:00:17]} Bxf2+ {[%emt 0:00:12]} 57. Qxf2 {[%emt 0:00:05]} Qxh3 {[%emt 0:00:07]} 58. Be4 {[%emt 0:01:13]} Qxb3 {[%emt 0:01:27]} 59. Qh4+ {[%emt 0:00:14]} Kg7 {[%emt 0:00:05]} 60. Qe7+ {[%emt 0:00:09]} Nf7 {[%emt 0:00:23]} 61. Bd5 {[%emt 0:00:29]} Qg3+ {[%emt 0:00:05]} 62. Kf1 {[%emt 0:01:41]} Qf4+ {[%emt 0:00:16]} 63. Ke2 {[%emt 0:00:33]} Qe5+ {[%emt 0:00:17]} 64. Qxe5+ {[%emt 0:00:05]} Nxe5 {[%emt 0:00:05]} 65. Ke3 {[%emt 0:00:05]} Kf6 {[%emt 0:00:27]} 66. Kd4 {[%emt 0:00:13]} Nd7 {[%emt 0:01:01]} 67. Bf3 {[%emt 0:00:28]} g5 {[%emt 0:00:13]} 68. Kd5 {[%emt 0:00:16]} Ke7 {[%emt 0:00:03]} 69. Ke4 {[%emt 0:00:19]} Kf6 {[%emt 0:01:40]} 70. Kd5 {[%emt 0:00:06]} Ke7 {[%emt 0:02:27]} 71. Ke4 {[%emt 0:00:07]} Ne5 {[%emt 0:02:45]} 72. c5 {[%emt 0:00:27]} 1/2-1/2

[Event "UZB-ch Men 2021"]
[Site "Tashkent"]
[Date "2021.04.20"]
[Round "4.1"]
[White "Dzhumaev, Marat"]
[Black "Madaminov, Mukhiddin"]
[Result "1-0"]
[ECO "A32"]
[WhiteElo "2425"]
[BlackElo "2258"]
[Annotator "RC"]
[PlyCount "98"]
[EventDate "2021.04.17"]
[EventType "tourn"]
[EventCountry "UZB"]
[SourceTitle "playchess.com"]
[Source "ChessBase"]
[SourceQuality "1"]
[TimeControl "5400+30"]

1. d4 {[%emt 0:12:25]} Nf6 {[%emt 0:00:05]} 2. c4 {[%emt 0:00:19]} e6 {[%emt 0:00:28]} 3. g3 {[%emt 0:01:26]} c5 {[%emt 0:02:52]} 4. Nf3 {[%emt 0:01:21]} cxd4 {[%emt 0:02:53]} 5. Nxd4 {[%emt 0:01:36]} Qc7 {[%emt 0:01:33]} 6. Nd2 {[%emt 0:06:15]} Nc6 {[%emt 0:13:35]} 7. Nb5 {[%emt 0:00:23]} Qb6 {[%emt 0:07:49]} 8. Bg2 {[%emt 0:00:17]} d5 {[%emt 0:04:09]} 9. O-O {[%emt 0:04:40]} Be7 {[%emt 0:03:26]} 10. Nf3 {[%emt 0:18:39]} O-O {[%emt 0:10:33]} 11. Be3 {[%emt 0:00:11]} Bc5 {[%emt 0:05:19]} 12. Bxc5 {[%emt 0:00:40]} Qxc5 {[%emt 0:01:25]} 13. Nc7 {[%emt 0:20:30]} Rb8 {[%emt 0:00:20]} 14. cxd5 {[%emt 0:00:11]} exd5 {[%emt 0:01:01]} 15. Qd2 {[%emt 0:00:22]} Be6 {[%emt 0:06:10]} 16. Rac1 {[%emt 0:01:48]} Qb6 {[%emt 0:00:48]} 17. Nxe6 {[%emt 0:00:19]} fxe6 {[%emt 0:00:05]} 18. Ng5 {[%emt 0:02:05]} Rfe8 {[%emt 0:13:52]} 19. e4 {[%emt 0:04:32]} h6 {[%emt 0:01:23]} 20. exd5 {[%emt 0:00:34]} Rbd8 {[%emt 0:00:53]} 21. Ne4 {[%emt 0:03:50]} Nxe4 {[%emt 0:08:20]} 22. Bxe4 {[%emt 0:00:14]} Nb4 {[%emt 0:03:07]} 23. Bb1 {[%emt 0:05:31]} Nxd5 {[%emt 0:01:32]} 24. Rfe1 {[%emt 0:01:02]} Nf6 {[%emt 0:01:42]} 25. Qc3 {[%emt 0:01:54]} Kf7 {[%emt 0:06:15]} 26. Re2 {[%emt 0:00:46]} e5 {[%emt 0:01:26]} 27. Qc4+ {[%emt 0:03:52]} Kf8 {[%emt 0:01:35]} 28. Bg6 {[%emt 0:00:47]} Re7 {[%emt 0:00:52]} 29. Rxe5 {[%emt 0:01:31]} Ng4 {[%emt 0:00:27]} 30. Qf4+ {[%emt 0:02:22]} Nf6 {[%emt 0:00:09]} 31. Rxe7 {[%emt 0:00:46]} Kxe7 {[%emt 0:00:05]} 32. Rc7+ {[%emt 0:00:24]} Rd7 {[%emt 0:00:51]} 33. Qe5+ {[%emt 0:00:20]} Qe6 {[%emt 0:00:58]} 34. Rxd7+ {[%emt 0:00:53]} Nxd7 {[%emt 0:00:11]} 35. Qxg7+ {[%emt 0:00:09]} Kd8 {[%emt 0:00:05]} 36. a3 {[%emt 0:01:22]} Qd5 {[%emt 0:01:10]} 37. Qh8+ {[%emt 0:00:48]} Kc7 {[%emt 0:00:34]} 38. Qc3+ {[%emt 0:00:16]} Kb8 {[%emt 0:00:20]} 39. Qd3 {[%emt 0:00:17]} Qc6 {[%emt 0:00:41]} 40. Be4 {[%emt 0:00:25]} Qc7 {[%emt 0:00:18]} 41. Qd2 {[%emt 0:01:09]} a6 {[%emt 0:00:39]} 42. Qxh6 {[%emt 0:00:21]} Qe5 {[%emt 0:00:32]} 43. Qf4 {[%emt 0:01:28]} Qxf4 {[%emt 0:00:07]} 44. gxf4 {[%emt 0:00:04]} b6 {[%emt 0:00:05]} 45. Kg2 {[%emt 0:00:25]} Kc7 {[%emt 0:00:02]} 46. Kg3 {[%emt 0:00:09]} Kd6 {[%emt 0:00:05]} 47. Kg4 {[%emt 0:00:07]} Nc5 {[%emt 0:00:16]} 48. Bc2 {[%emt 0:00:10]} Ne6 {[%emt 0:00:05]} 49. h4 {[%emt 0:00:17]} Kd5 {[%emt 0:01:06]} 1-0

[Event "UZB-ch Men 2021"]
[Site "Tashkent"]
[Date "2021.04.20"]
[Round "4.3"]
[White "Shermuhammadov, Samandar"]
[Black "Abdurakhmonov, Mukhammadali"]
[Result "1/2-1/2"]
[ECO "B51"]
[WhiteElo "2063"]
[BlackElo "2284"]
[Annotator "NA RC"]
[PlyCount "121"]
[EventDate "2021.04.17"]
[EventType "tourn"]
[EventCountry "UZB"]
[SourceTitle "playchess.com"]
[Source "ChessBase"]
[SourceQuality "1"]
[TimeControl "5400+30"]

1. e4 {[%emt 0:00:00]} c5 {[%emt 0:04:18]} 2. Nf3 {[%emt 0:00:00]} Nf6 {[%emt 0:00:07]} 3. Nc3 {[%emt 0:00:41]} d6 {[%emt 0:00:12]} 4. Bb5+ {[%emt 0:01:26]} Nbd7 {[%emt 0:07:50]} 5. d4 {[%emt 0:00:10]} cxd4 {[%emt 0:02:55]} 6. Nxd4 {[%emt 0:02:53]} a6 {[%emt 0:00:41]} 7. Be2 {[%emt 0:00:10]} e6 {[%emt 0:10:02]} 8. O-O {[%emt 0:00:15]} b5 {[%emt 0:03:09]} 9. f3 {[%emt 0:01:32]} Bb7 {[%emt 0:01:28]} 10. a3 {[%emt 0:03:59]} Be7 {[%emt 0:01:52]} 11. Qe1 {[%emt 0:01:38]} d5 {[%emt 0:01:16]} 12. exd5 {[%emt 0:04:18]} Nxd5 {[%emt 0:00:07]} 13. Nxd5 {[%emt 0:00:24]} Bxd5 {[%emt 0:00:05]} 14. Be3 {[%emt 0:01:46]} O-O {[%emt 0:00:42]} 15. Rd1 {[%emt 0:01:02]} Qc7 {[%emt 0:02:00]} 16. Qg3 {[%emt 0:02:47]} Bd6 {[%emt 0:14:23]} 17. Qh3 {[%emt 0:07:38]} Ne5 {[%emt 0:07:38]} 18. Kh1 {[%emt 0:07:35]} Nc4 {[%emt 0:04:47]} 19. Bc1 {[%emt 0:06:19]} Bf4 {[%emt 0:01:25]} 20. Bd3 {[%emt 0:05:12]} g6 {[%emt 0:00:32]} 21. Bxc4 {[%emt 0:01:18]} bxc4 {[%emt 0:00:16]} 22. Bxf4 {[%emt 0:00:12]} Qxf4 {[%emt 0:00:08]} 23. Ne2 {[%emt 0:06:28]} Qe3 {[%emt 0:03:45]} 24. Nc3 {[%emt 0:01:26]} Rab8 {[%emt 0:00:16]} 25. Rde1 {[%emt 0:06:54]} Qf4 {[%emt 0:02:07]} 26. Nd1 {[%emt 0:00:46]} Rfd8 {[%emt 0:01:23]} 27. Qg3 {[%emt 0:05:56]} Qxg3 {[%emt 0:03:54]} 28. hxg3 {[%emt 0:00:10]} Bc6 {[%emt 0:01:44]} 29. Rf2 {[%emt 0:00:46]} Kg7 {[%emt 0:00:33]} 30. c3 {[%emt 0:03:05]} Ba4 {[%emt 0:09:48]} 31. Ne3 {[%emt 0:00:06]} Rbc8 {[%emt 0:00:30]} 32. Nc2 {[%emt 0:02:26]} Rc5 {[%emt 0:00:06]} 33. Kg1 {[%emt 0:04:41]} h5 {[%emt 0:00:37]} 34. Re4 {[%emt 0:02:03]} Rd1+ {[%emt 0:04:05]} 35. Kh2 {[%emt 0:00:11]} Bxc2 {[%emt 0:03:25]} 36. Rxc2 {[%emt 0:00:03]} Kf6 {[%emt 0:00:16]} 37. Rf4+ {[%emt 0:03:54]} Ke7 {[%emt 0:00:08]} 38. Rd4 {[%emt 0:00:14]} Rb1 {[%emt 0:01:21]} 39. f4 {[%emt 0:01:55]} Rd5 {[%emt 0:01:42]} 40. Rxd5 {[%emt 0:02:53]} exd5 {[%emt 0:00:13]} 41. Re2+ {[%emt 0:00:03]} Kd6 {[%emt 0:00:18]} 42. g4 {[%emt 0:00:23]} hxg4 {[%emt 0:02:16]} 43. Kg3 {[%emt 0:00:07]} f5 {[%emt 0:00:34]} 44. Kh4 {[%emt 0:00:49]} d4 {[%emt 0:01:03]} 45. cxd4 {[%emt 0:00:41]} Kd5 {[%emt 0:00:04]} 46. Kg5 {[%emt 0:03:11]} Kxd4 {[%emt 0:00:15]} 47. Rd2+ {[%emt 0:04:12]} Ke3 {[%emt 0:00:36]} 48. Rc2 {[%emt 0:00:11]} Kd3 {[%emt 0:02:15]} 49. Rc3+ {[%emt 0:00:19]} Kd4 {[%emt 0:00:05]} 50. Rc2 {[%emt 0:00:07]} Rf1 {[%emt 0:00:57]} 51. g3 {[%emt 0:01:19]} Rg1 {[%emt 0:00:04]} 52. Kxg6 {[%emt 0:00:15]} Rxg3 {[%emt 0:00:06]} 53. Kxf5 {[%emt 0:00:08]} Rg1 {[%emt 0:00:12]} 54. Kg5 {[%emt 0:00:34]} g3 {[%emt 0:00:42]} 55. Kg4 {[%emt 0:01:36]} a5 {[%emt 0:00:49]} 56. Kf3 {[%emt 0:00:33]} Kd3 {[%emt 0:00:33]} 57. Rc3+ {[%emt 0:00:53]} Kd4 {[%emt 0:00:06]} 58. Rc2 {[%emt 0:00:06]} Kd3 {[%emt 0:00:50]} 59. Rc3+ {[%emt 0:00:50]} Kd4 {[%emt 0:00:05]} 60. Rc2 {[%emt 0:00:06]} Kd3 {[%emt 0:00:04]} 61. Rc3+ {[%emt 0:00:04]} 1/2-1/2

[Event "UZB-ch Men 2021"]
[Site "Tashkent"]
[Date "2021.04.25"]
[Round "9.3"]
[White "Madaminov, Mukhiddin"]
[Black "Abdisalimov, Abdimalik"]
[Result "0-1"]
[ECO "B51"]
[WhiteElo "2258"]
[BlackElo "2392"]
[Annotator "RC"]
[PlyCount "162"]
[EventDate "2021.04.17"]
[EventType "tourn"]
[EventCountry "UZB"]
[SourceTitle "playchess.com"]
[Source "ChessBase"]
[SourceQuality "1"]
[TimeControl "5400+30"]

1. e4 {[%emt 0:00:40]} c5 {[%emt 0:00:00]} 2. Nf3 {[%emt 0:00:07]} d6 {[%emt 0:00:00]} 3. Bb5+ {[%emt 0:01:04]} Nd7 {[%emt 0:00:00]} 4. O-O {[%emt 0:00:39]} a6 {[%emt 0:00:00]} 5. Bd3 {[%emt 0:00:13]} Ngf6 {[%emt 0:00:00]} 6. Re1 {[%emt 0:00:11]} g6 {[%emt 0:00:00]} 7. c3 {[%emt 0:02:00]} b5 {[%emt 0:01:22]} 8. Bc2 {[%emt 0:02:00]} Bg7 {[%emt 0:00:08]} 9. d4 {[%emt 0:01:16]} cxd4 {[%emt 0:00:03]} 10. cxd4 {[%emt 0:00:20]} O-O {[%emt 0:00:07]} 11. Nbd2 {[%emt 0:12:55]} Bb7 {[%emt 0:00:09]} 12. Nb3 {[%emt 0:00:14]} Rc8 {[%emt 0:08:20]} 13. Bd2 {[%emt 0:01:16]} Nb6 {[%emt 0:00:08]} 14. Ba5 {[%emt 0:06:22]} Nfd7 {[%emt 0:00:19]} 15. a4 {[%emt 0:06:55]} Qe8 {[%emt 0:01:35]} 16. axb5 {[%emt 0:01:47]} axb5 {[%emt 0:00:06]} 17. Nbd2 {[%emt 0:00:23]} Nc4 {[%emt 0:06:45]} 18. Nxc4 {[%emt 0:02:28]} bxc4 {[%emt 0:00:04]} 19. Qe2 {[%emt 0:10:15]} Nf6 {[%emt 0:12:48]} 20. Bc3 {[%emt 0:07:17]} Qb5 {[%emt 0:01:16]} 21. Ra5 {[%emt 0:11:20]} Qb6 {[%emt 0:02:10]} 22. Rea1 {[%emt 0:00:11]} d5 {[%emt 0:04:38]} 23. e5 {[%emt 0:00:36]} Nd7 {[%emt 0:01:37]} 24. h4 {[%emt 0:00:15]} Ra8 {[%emt 0:00:38]} 25. h5 {[%emt 0:01:15]} Rxa5 {[%emt 0:00:12]} 26. Rxa5 {[%emt 0:00:01]} Ra8 {[%emt 0:00:44]} 27. Rxa8+ {[%emt 0:01:19]} Bxa8 {[%emt 0:00:04]} 28. Ng5 {[%emt 0:06:47]} Nf8 {[%emt 0:01:53]} 29. hxg6 {[%emt 0:03:00]} hxg6 {[%emt 0:00:13]} 30. f4 {[%emt 0:01:01]} Bb7 {[%emt 0:05:36]} 31. f5 {[%emt 0:03:41]} f6 {[%emt 0:03:53]} 32. Nf3 {[%emt 0:02:06]} Bc8 {[%emt 0:01:53]} 33. exf6 {[%emt 0:04:33]} Qxf6 {[%emt 0:09:05]} 34. fxg6 {[%emt 0:01:07]} Bg4 {[%emt 0:00:12]} 35. Qe5 {[%emt 0:10:49]} Qe6 {[%emt 0:07:26]} 36. Qg5 {[%emt 0:01:02]} Bf6 {[%emt 0:00:06]} 37. Qf4 {[%emt 0:00:20]} Qe2 {[%emt 0:00:50]} 38. g7 {[%emt 0:00:41]} Bxg7 {[%emt 0:00:54]} 39. Qxg4 {[%emt 0:00:21]} Qxc2 {[%emt 0:00:01]} 40. Ne5 {[%emt 0:00:15]} Qc1+ {[%emt 0:02:32]} 41. Kf2 {[%emt 0:00:24]} Qh6 {[%emt 0:00:18]} 42. Ke2 {[%emt 0:00:45]} Ne6 {[%emt 0:00:23]} 43. g3 {[%emt 0:00:45]} Qf6 {[%emt 0:03:27]} 44. Nf3 {[%emt 0:00:31]} Nf8 {[%emt 0:00:33]} 45. Ne5 {[%emt 0:00:08]} Ne6 {[%emt 0:07:22]} 46. Nf3 {[%emt 0:00:14]} Qh6 {[%emt 0:00:47]} 47. Bd2 {[%emt 0:00:14]} Qf6 {[%emt 0:00:47]} 48. Bc3 {[%emt 0:00:46]} Nf8 {[%emt 0:03:13]} 49. Ne5 {[%emt 0:00:10]} e6 {[%emt 0:01:27]} 50. Bb4 {[%emt 0:00:39]} Qf5 {[%emt 0:00:14]} 51. Qxf5 {[%emt 0:00:41]} exf5 {[%emt 0:00:01]} 52. Nc6 {[%emt 0:00:15]} Ng6 {[%emt 0:01:58]} 53. Bc5 {[%emt 0:00:23]} Kf7 {[%emt 0:00:06]} 54. Nd8+ {[%emt 0:00:10]} Kf6 {[%emt 0:00:00]} 55. Bd6 {[%emt 0:01:08]} Bh6 {[%emt 0:00:15]} 56. Kd1 {[%emt 0:00:42]} Be3 {[%emt 0:00:02]} 57. Nc6 {[%emt 0:00:46]} Ke6 {[%emt 0:01:34]} 58. Bb8 {[%emt 0:00:30]} Nf8 {[%emt 0:00:05]} 59. Be5 {[%emt 0:00:39]} Nd7 {[%emt 0:00:44]} 60. Nd8+ {[%emt 0:00:13]} Ke7 {[%emt 0:00:02]} 61. Nc6+ {[%emt 0:00:15]} Kf7 {[%emt 0:03:14]} 62. Nd8+ {[%emt 0:00:13]} Kg6 {[%emt 0:01:35]} 63. Nc6 {[%emt 0:01:25]} Nxe5 {[%emt 0:00:23]} 64. Nxe5+ {[%emt 0:00:30]} Kg5 {[%emt 0:02:54]} 65. Nc6 {[%emt 0:00:08]} Kf6 {[%emt 0:00:01]} 66. Kc2 {[%emt 0:00:48]} Bf2 {[%emt 0:00:05]} 67. b3 {[%emt 0:00:33]} cxb3+ {[%emt 0:00:08]} 68. Kxb3 {[%emt 0:00:04]} Bxg3 {[%emt 0:00:04]} 69. Kb4 {[%emt 0:00:58]} f4 {[%emt 0:00:40]} 70. Ne5 {[%emt 0:00:24]} Kf5 {[%emt 0:00:02]} 71. Kc5 {[%emt 0:00:10]} Ke4 {[%emt 0:00:01]} 72. Nf7 {[%emt 0:00:34]} Bh4 {[%emt 0:04:32]} 73. Nd6+ {[%emt 0:00:18]} Kd3 {[%emt 0:00:01]} 74. Nf7 {[%emt 0:00:28]} Bf6 {[%emt 0:00:18]} 75. Ne5+ {[%emt 0:00:50]} Ke4 {[%emt 0:01:25]} 76. Kd6 {[%emt 0:00:34]} Kxd4 {[%emt 0:00:12]} 77. Nf3+ {[%emt 0:00:25]} Ke3 {[%emt 0:00:10]} 78. Nh2 {[%emt 0:00:19]} Ke4 {[%emt 0:01:50]} 79. Nf1 {[%emt 0:00:52]} d4 {[%emt 0:00:18]} 80. Kc5 {[%emt 0:00:04]} Kd3 {[%emt 0:00:15]} 81. Kd5 {[%emt 0:00:18]} Ke2 {[%emt 0:11:17]} 0-1